Cogmind - Beta 11.1 @@@ ROGUE MODE // 2022.06.09 @ 14:39:32 Player: Candesce Result: Self-destructed Performance ------------- Evolutions (4) 2000 Regions Visited (17) 3400 Robots Destroyed (165) 825 Value Destroyed (6118) 6118 Prototype IDs (54) 1080 Alien Tech Used (0) 0 Bonus (2547) 2547 TOTAL SCORE: 15970 Bonus ------- High Alert Combat Kills 77 Follower Combat Kills 362 Aligned with FarCom 300 Met Data Miner 300 Destroyed Z-Imprinter 1000 Triggered Deep Caves Wall 500 Exposed GOLEM Chamber 500 Friendly Fire -492 Cogmind --------- Core Integrity 355/850 Matter 300/300 Energy 600/600 System Corruption 0% Temperature Cool (20) Movement Walking (130) Location -6/Deep Caves Parts ------- > --- POWER (1) -------- Zionite Light DM Reactor > --- PROPULSION (4) --- Makeshift Leg Makeshift Leg Flexi-carbon Leg Advanced Myomer Leg > --- UTILITY (7) ------ Improved Cooling System Large Storage Unit Advanced Energy Well Graphene Brace Improved System Shield Improved Trap Extractor (3/6 Dirty Bomb) > --- WEAPON (3) ------- Proton Cannon > --- INVENTORY (15) --- Makeshift Power Source Makeshift Leg Advanced Myomer Leg Experimental Flexi-carbon Leg Makeshift Cloaking Device Improved System Shield Plasma Rifle Long-range Missile Launcher Remote Datajack Field Lobotomy Kit (4) RU-N14's Throwing Claymores (10) Peak State ------------ > --- POWER ------------ Zionite Light DM Reactor > --- PROPULSION ------- Flexi-carbon Leg Advanced Myomer Leg Advanced Myomer Leg Advanced Myomer Leg > --- UTILITY ---------- Large Storage Unit Advanced Energy Well Improved Medium Armor Plating Graphene Brace Force Field Improved System Shield Hacking Drone Bay > --- WEAPON ----------- RU-N14's Throwing Claymores RU-N14's Throwing Claymores RU-N14's Throwing Claymores > --- INVENTORY -------- Makeshift Power Source Makeshift Leg Makeshift Leg Makeshift Leg Advanced Myomer Leg Experimental Flexi-carbon Leg Makeshift Cloaking Device Improved System Shield Improved Trap Extractor Plasma Rifle Proton Cannon Long-range Missile Launcher Remote Datajack Field Lobotomy Kit RU-N14's Throwing Claymores [Rating: 105] Favorites ----------- Power Improved Deuterium Engine Engine Improved Deuterium Engine Power Core Enhanced Fission Core Reactor Cold Fusion Reactor Propulsion Advanced Myomer Leg Treads Armored Treads Leg Advanced Myomer Leg Wheel Compact Wheel Flight Unit Improved VTOL Module Utility Large Storage Unit Device Improved Terrain Scanner Storage Large Storage Unit Processor Advanced Targeting Computer Hackware Hacking Suite Protection Hardened Medium Armor Plating Weapon Hypervelocity Gauss Cannon Energy Gun Heavy EM Shotgun Energy Cannon Proton Cannon Ballistic Gun Autogun Ballistic Cannon Hypervelocity Gauss Cannon Launcher Mini Grenade Launcher Special Weapon RU-N14's Throwing Claymores Slashing Weapon Centrium Greatsword Special Melee Weapon Improved Datajack Build | -11 -10 -10 -10 -9 -8 -7 -7 -7 -7 -7 -7 -6 -6 -6 -6 -6 -6 ------- Run | Scr Mat Min Exi Min Mat Fac Was Fac Low Low Dat Pro Fac Low Low Zio Dee Slots Evolved 8 | . . . . . 4 2 . . . . . . 2 . . . . Power . | . . . . . . . . . . . . . . . . . . Propulsion 2 | . . . . . 1 1 . . . . . . . . . . . Utility 5 | . . . . . 2 1 . . . . . . 2 . . . . Weapon 1 | . . . . . 1 . . . . . . . . . . . . Parts Attached 233 | 8 4 11 . 14 68 33 1 19 2 4 . 12 18 6 16 8 9 Power 17 | 1 . 1 . 1 4 1 . 1 . 1 . 2 2 . 1 1 1 Engine 12 | 1 . 1 . 1 3 . . 1 . 1 . 2 1 . 1 . . Core 3 | . . . . . 1 1 . . . . . . . . . 1 . Reactor 2 | . . . . . . . . . . . . . 1 . . . 1 Propulsion 36 | 2 . 3 . 1 15 9 . 1 . . . 1 2 . . . 2 Treads 11 | . . . . . 8 3 . . . . . . . . . . . Leg 14 | . . . . . 2 6 . 1 . . . 1 2 . . . 2 Wheel 10 | 2 . 3 . 1 4 . . . . . . . . . . . . Hover . | . . . . . . . . . . . . . . . . . . Flight 1 | . . . . . 1 . . . . . . . . . . . . Utility 93 | 2 1 4 . 4 24 15 1 5 2 1 . 2 10 3 13 3 3 Device 49 | 1 . 2 . 2 13 9 . 1 1 1 . . 4 1 9 3 2 Storage 7 | 1 1 . . . 1 1 . . . . . . 1 . 2 . . Processor 6 | . . . . . 3 1 . . 1 . . . 1 . . . . Hackware 7 | . . . . . 1 1 1 1 . . . . 2 . 1 . . Protection 24 | . . 2 . 2 6 3 . 3 . . . 2 2 2 1 . 1 Artifact . | . . . . . . . . . . . . . . . . . . Weapon 87 | 3 3 3 . 8 25 8 . 12 . 2 . 7 4 3 2 4 3 Energy Gun 17 | 1 1 1 . 2 9 . . . . . . . 1 . 1 1 . Energy Cannon 9 | . . . . . . 4 . 1 . . . . 2 1 . . 1 Ballistic Gun 12 | 2 2 2 . 2 3 . . . . . . . . 1 . . . Ballistic Cannon 14 | . . . . 1 3 . . 4 . . . 4 . 1 1 . . Launcher 12 | . . . . 2 6 1 . 2 . . . 1 . . . . . Special Weapon 9 | . . . . . . . . 3 . . . 2 . . . 2 2 Impact Weapon . | . . . . . . . . . . . . . . . . . . Slashing Weapon 13 | . . . . 1 3 3 . 2 . 2 . . 1 . . 1 . Piercing Weapon . | . . . . . . . . . . . . . . . . . . Special Melee Weapon 1 | . . . . . 1 . . . . . . . . . . . . Unidentified Prototypes 17 | . . . . . 3 6 . . . . . 1 3 . . 2 2 Corrupted Parts 6 | . . . . 1 5 . . . . . . . . . . . . System Corruption 37 | . . . . 9 28 . . . . . . . . . . . . Parts Lost 34 | . . . . 1 10 . . 6 . 1 . 4 1 1 5 . 5 Power 4 | . . . . . 1 . . 1 . . . 1 1 . . . . Propulsion 7 | . . . . 1 4 . . . . . . . . . . . 2 Utility 12 | . . . . . 1 . . 1 . 1 . 1 . 1 4 . 3 Weapon 11 | . . . . . 4 . . 4 . . . 2 . . 1 . . Highest Loss Streak 4 | . . . . 1 2 . . 2 . 1 . 2 1 1 3 . 4 To Critical Strikes . | . . . . . . . . . . . . . . . . . . Average Slot Usage (%) 94 | . 100 99 100 98 97 97 92 90 92 91 84 74 89 95 98 99 98 Engine 5 | . 14 14 14 14 8 6 . 2 7 7 7 6 5 . 3 2 . Core 1 | . . . . . . . 7 4 . . . . . . . 3 2 Treads 5 | . . . . . 12 25 . . . . . . . . . . . Leg 18 | . . . . . 3 3 30 30 30 30 30 30 25 26 26 26 25 Wheel 4 | . 28 27 28 26 8 . . . . . . . . . . . . Device 8 | . 14 12 14 10 8 6 . . 15 14 15 3 1 5 15 20 17 Storage 9 | . 14 14 14 14 9 7 7 7 7 7 7 7 10 6 11 13 13 Processor 4 | . . . . . 3 7 7 7 7 7 7 7 8 9 . . . Hackware 6 | . . . . . 6 7 15 13 . . . . 6 6 6 6 6 Protection 7 | . . 1 . 3 7 6 7 7 7 7 7 6 8 16 9 6 7 Energy Gun 5 | . 13 19 14 12 15 3 . . . . . . . . 4 9 2 Energy Cannon 2 | . . . . . . 8 7 1 . . . . 8 2 1 . 1 Ballistic Gun 2 | . 14 8 14 14 6 . . . . . . . . 2 1 . . Ballistic Cannon 3 | . . . . . . . . 2 7 7 . 7 6 5 11 4 . Special Weapon 1 | . . . . . . . . 3 . . . 1 . . . 4 15 Slashing Weapon 2 | . . . . . 1 6 7 5 7 7 7 . 1 3 . . . Naked Turns . | . . . . . . . . . . . . . . . . . . Heaviest Build 97 | 13 20 33 26 33 43 60 48 64 49 49 38 87 97 79 80 69 73 Greatest Support 120 | 20 20 26 26 32 66 120 113 113 60 60 60 90 120 110 110 110 110 Greatest Overweight (x) 2 | . . 1 . 1 2 . . . . . . 1 1 . . . 1 Average Overweight (x) . | . . . . . . . . . . . . . . . . . . Largest Inventory Capacity 15 | 8 10 10 10 10 10 15 15 15 15 15 15 15 15 15 15 15 15 Average Capacity 13 | 7 9 10 10 10 10 13 15 15 15 15 15 15 15 15 15 15 15 Most Carried 15 | 1 10 10 10 10 10 15 15 15 14 15 14 15 15 15 15 15 15 Average Carried 13 | . 5 9 9 9 9 13 15 14 13 13 14 13 14 14 14 14 14 Final Capacity 15 | 8 10 10 10 10 10 15 15 15 15 15 15 15 15 15 15 15 15 Final Carried 15 | 1 10 10 10 10 10 15 15 15 13 14 14 15 15 15 14 15 11 Class Distribution -------------------- 20% | Mutant 14% | Hacker-Mutant 12% | Scavenger-Mutant 12% | Scavenger-Tank 12% | Skirmisher 9% | Gladiator 5% | Assassin 4% | Scavenger-Assassin 3% | Hacker-Gladiator Dominant Class ---------------- Mutant | -10/Materials Mutant | -10/Mines Mutant | -10/Exiles Mutant | -9/Mines Skirmisher | -8/Materials Assassin | -7/Factory Hacker-Mutant | -7/Waste Hacker-Mutant | -7/Factory Gladiator | -7/Lower Caves Gladiator | -7/Lower Caves Gladiator | -7/Data Miner Mutant | -6/Proximity Caves Skirmisher | -6/Factory Gladiator | -6/Lower Caves Scavenger-Tank | -6/Lower Caves Scavenger-Tank | -6/Zion Mutant | -6/Deep Caves Resources | -11 -10 -10 -10 -9 -8 -7 -7 -7 -7 -7 -7 -6 -6 -6 -6 -6 -6 ----------- Run | Scr Mat Min Exi Min Mat Fac Was Fac Low Low Dat Pro Fac Low Low Zio Dee Matter Collected 4618 | 213 . 251 . 209 1055 377 . 725 26 70 . 585 333 124 495 80 75 Remotely 394 | . . . . . 394 . . . . . . . . . . . . Salvage Created 6960 | 14 . 250 . 211 1650 823 . 1184 . 26 . 496 816 332 300 . 858 Parts 338 | 3 . 17 . 7 105 48 . 62 . 2 . 15 39 14 15 . 11 Haulers Intercepted 2 | . . . . . 1 . . . . . . . 1 . . . . Recyclers Shooed 4 | . . . . 1 1 1 . 1 . . . . . . . . . Parts Field Recycled . | . . . . . . . . . . . . . . . . . . Retrieved Matter . | . . . . . . . . . . . . . . . . . . Parts Self-Destructed 61 | . . . . . . . . . . . . 26 . 13 18 4 . Prevented 3 | . . . . . . . . . . . . . . . 3 . . Kills | -11 -10 -10 -10 -9 -8 -7 -7 -7 -7 -7 -7 -6 -6 -6 -6 -6 -6 ------- Run | Scr Mat Min Exi Min Mat Fac Was Fac Low Low Dat Pro Fac Low Low Zio Dee Combat Hostiles Destroyed 170 | . . 6 . 9 28 14 . 19 . 2 . 12 10 6 9 . 55 Melee 34 | . . . . . . 8 . 13 . 2 . 2 4 5 . . . Guns 22 | . . 6 . 4 8 . . . . . . . . . 2 . 2 Cannons 36 | . . . . . 2 4 . 4 . . . 8 6 1 6 . 5 AOE 73 | . . . . 5 15 1 . 2 . . . 2 . . 1 . 47 Classes Destroyed 25 | 1 . 4 . 1 8 1 . . . 1 . 2 1 . 2 . 4 Worker 7 | . . . . . 2 4 . 1 . . . . . . . . . Builder 6 | . . . . . 4 . . 2 . . . . . . . . . Tunneler 3 | 1 . 1 . . . . . . . . . . 1 . . . . Hauler 2 | . . . . . 1 . . . . . . . 1 . . . . Recycler 10 | . . 1 . 2 4 . . 2 . . . . 1 . . . . Minesweeper 1 | . . . . . . . . . . . . . . . 1 . . Mechanic 1 | . . . . . . . . . . . . . 1 . . . . Operator 4 | . . . . . 1 1 . 1 . . . . 1 . . . . Watcher 8 | . . . . . 3 1 . 3 . . . . 1 . . . . Swarmer 23 | . . 3 . 3 7 . . 1 . . . 2 2 . 5 . . Saboteur 1 | . . . . . . . . . . . . 1 . . . . . Grunt 38 | . . 2 . 2 13 6 . 7 . . . 3 3 2 . . . Brawler 4 | . . . . . . . . . . . . 4 . . . . . Duelist 4 | . . . . . 1 1 . . . . . 1 . . 1 . . Sentry 20 | . . 1 . . 5 2 . 7 . . . 1 1 1 2 . . Hunter 3 | . . . . . 1 1 . . . . . . 1 . . . . Programmer 14 | . . . . . . 4 . 4 . . . . 3 3 . . . Heavy 1 | . . . . . 1 . . . . . . . . . . . . Behemoth 1 | . . . . . . . . . . . . . . . 1 . . Z-Light 8 | . . . . . . . . . . . . . . . . . 8 Thief 2 | . . . . . . . . . . 2 . . . . . . . Assembler 1 | . . . . . . . . . . . . . . . . . 1 Assembled 43 | . . . . 4 . . . . . . . . . . . . 39 Golem 7 | . . . . . . . . . . . . . . . . . 7 Fireman 1 | . . . . . . . . . . . . . . . . . 1 Best Kill Streak 41 | 1 . 3 . 4 8 4 . 6 . 1 . 4 3 4 4 . 41 Combat Bots Only 41 | . . 3 . 3 6 3 . 6 . 1 . 4 2 4 4 . 41 Max Kills in Single Turn 19 | 1 . 2 . 2 3 2 . 1 . 1 . 1 2 1 2 . 19 Gunslinging 1 | . . 1 . . . . . . . . . . . . . . . Exploded 18 | . . . . 2 3 1 . 1 . . . 1 . . 1 . 18 Melee 1 | . . . . . . 1 . 1 . 1 . 1 1 1 . . . Uniques/NPCs Destroyed 1 | . . . . . . . . . . . . . . . . . 1 Z-Imprinter (-6/Deep Caves) Combat | -11 -10 -10 -10 -9 -8 -7 -7 -7 -7 -7 -7 -6 -6 -6 -6 -6 -6 -------- Run | Scr Mat Min Exi Min Mat Fac Was Fac Low Low Dat Pro Fac Low Low Zio Dee Damage Taken 10345 | . . 149 . 209 1947 851 . 2054 . 230 . 1509 429 593 1120 . 1254 Core 1239 | . . 6 . 68 139 63 . 250 . 17 . 201 18 101 75 . 301 Absorbed by Shields 545 | . . . . . . . . . . . . . . . 200 . 345 Redirected to Shielding 115 | . . . . . . . . . . . . . . . . . 115 Regen/Repaired (Parts) 934 | . . . . . 366 243 . 325 . . . . . . . . . Core Remaining (%) 67 | 100 . . . 70 74 . . . . . . 24 . . . . . Volleys Fired 280 | 1 3 14 . 21 83 19 . 23 . 1 . 38 13 5 24 1 34 Largest 3 | 2 2 2 . 2 3 3 . 2 . 1 . 2 3 1 3 1 3 Hottest 240 | 70 88 128 . 86 150 240 . 122 . 61 . 122 211 61 207 75 75 Shots Fired 474 | 2 6 28 . 32 131 34 . 33 . 2 . 53 27 6 73 2 45 Gun 195 | 2 6 28 . 27 96 2 . . . . . . . 1 22 2 9 Cannon 209 | . . . . . 14 30 . 24 . 2 . 51 27 5 51 . 5 Launcher 35 | . . . . 5 21 2 . 5 . . . 2 . . . . . Special 35 | . . . . . . . . 4 . . . . . . . . 31 Kinetic 199 | 1 3 5 . 16 36 . . 20 . 2 . 51 10 6 49 . . Thermal 96 | 1 3 23 . 11 . 30 . 4 . . . . . . 13 2 9 Explosive 57 | . . . . 5 13 2 . 5 . . . 2 . . . . 30 Electromagnetic 117 | . . . . . 82 2 . . . . . . 17 . 11 . 5 Robot Hit Streak 18 | 1 1 18 . 9 16 14 . 10 . . . 7 14 15 9 . 5 Robot Miss Streak 8 | . 3 8 . 4 7 4 . 3 . 1 . 4 2 1 6 . 2 Penetration Max 1 | . . . . . . . . . . . . . 1 . . . . Secondary Targets 3 | . . 1 . 1 1 . . . . . . . . . . . . Max Gunslinging Chain 1 | . . 1 . 1 1 . . . . . . . . . . . . Shots Hit Robots 394 | 1 3 23 . 17 85 47 . 70 . 7 . 37 27 14 42 . 21 Core Hits 333 | 1 1 18 . 16 71 25 . 33 . 2 . 22 15 6 16 . 107 Critical Kills 18 | . . . . . 1 1 . 2 . . . 7 6 . 1 . . Critical Parts Destroyed 21 | . . . . . . . . 7 . . . 10 2 1 1 . . Critical Strikes 57 | . . . . . 1 2 . 15 . . . 18 9 2 6 . 4 Burn 1 | . . . . . . . . . . . . . . . 1 . . Meltdown 1 | . . . . . . 1 . . . . . . . . . . . Destroy 43 | . . . . . 1 . . 10 . . . 18 8 1 5 . . Sever 12 | . . . . . . 1 . 5 . . . . 1 1 . . 4 Melee Attacks 175 | . . . . 2 1 33 . 85 . 13 . 2 18 13 . 8 . Impact . | . . . . . . . . . . . . . . . . . . Slashing 175 | . . . . 2 1 33 . 85 . 13 . 2 18 13 . 8 . Piercing . | . . . . . . . . . . . . . . . . . . Sneak Attacks 16 | . . . . . . 7 . 6 . . . . 3 . . . . Combat Hostiles 2 | . . . . . . 2 . . . . . . . . . . . Follow-up Attacks . | . . . . . . . . . . . . . . . . . . Damage Inflicted 24818 | 13 30 333 . 672 3355 2147 . 4509 . 501 . 1024 1435 863 1168 . 8768 Guns 2367 | 13 30 333 . 272 1342 27 . . . . . . . . 239 . 111 Cannons 3097 | . . . . . 86 609 . 289 . . . 641 367 109 929 . 67 Explosions 11184 | . . . . 400 1927 355 . 420 . . . 243 . . . . 7839 Melee 7419 | . . . . . . 1156 . 3800 . 501 . 140 1068 754 . . . Ramming . | . . . . . . . . . . . . . . . . . . Kinetic 2603 | 13 . 46 . 104 357 . . 258 . . . 641 143 109 932 . . Thermal 1617 | . 30 287 . 168 204 609 . 119 . . . . . . 89 . 111 Explosive 10180 | . . . . 400 1053 355 . 290 . . . 243 . . . . 7839 Electromagnetic 2248 | . . . . . 1741 27 . 42 . . . . 224 . 147 . 67 Impact . | . . . . . . . . . . . . . . . . . . Slashing 8170 | . . . . . . 1156 . 3800 . 501 . 140 1068 754 . . 751 Piercing . | . . . . . . . . . . . . . . . . . . Highest Corruption 28 | . . . . 9 28 4 11 18 18 18 18 18 1 2 2 2 . Average Corruption 9 | . . . . 9 18 1 9 13 18 18 18 18 1 1 2 2 . Corruption Purged 2 | . . . . . . . . . . . . . 2 . . . . Corruption Blocked . | . . . . . . . . . . . . . . . . . . Effects 238 | . . . . . 2 32 5 100 14 21 5 34 . 14 10 1 . Message Errors 60 | . . . . . . 8 2 28 1 6 2 8 . 3 2 . . Matter Fused 65 | . . . . . 1 4 1 34 4 3 2 8 . 4 4 . . Heat Flow Errors 31 | . . . . . . 7 1 8 3 4 . 5 . 2 1 . . Energy Discharges 28 | . . . . . . 2 1 10 4 4 . 4 . 2 1 . . Parts Rejected 1 | . . . . . . 1 . . . . . . . . . . . Data Loss (minor) 22 | . . . . . . 6 . 8 . 1 1 5 . 1 . . . Data Loss (major) 8 | . . . . . . 1 . 4 . 1 . 1 . 1 . . . Misfires 11 | . . . . . . 2 . 3 . 1 . 1 . 1 2 1 . Alerts 7 | . . . . . . 1 . 3 2 1 . . . . . . . Misdirections 3 | . . . . . 1 . . 1 . . . 1 . . . . . Weapon Failures 2 | . . . . . . . . 1 . . . 1 . . . . . Overload Shots 1 | . . . . . . . . . . . . . . . 1 . . Overflow Damage 1622 | . . . . 10 14 276 . 631 . 131 . 28 236 32 45 . 219 Projectiles 90 | . . . . . . 6 . . . . . . 23 10 45 . 6 Explosions 284 | . . . . 10 14 . . 19 . . . 28 . . . . 213 Melee 1248 | . . . . . . 270 . 612 . 131 . . 213 22 . . . Knockbacks 10 | . . . . . . . . 1 . . . 7 1 . 1 . . Impact . | . . . . . . . . . . . . . . . . . . Kinetic 10 | . . . . . . . . 1 . . . 7 1 . 1 . . Secondary . | . . . . . . . . . . . . . . . . . . Self-Inflicted Damage 240 | . . . . 49 62 12 . 88 . . . 29 . . . . . Shots 12 | . . . . 2 2 2 . 4 . . . 2 . . . . . Rammed . | . . . . . . . . . . . . . . . . . . Targets Rammed . | . . . . . . . . . . . . . . . . . . Kicked . | . . . . . . . . . . . . . . . . . . Crushed . | . . . . . . . . . . . . . . . . . . Highest Temperature 374 | 9 48 366 . 188 243 333 94 281 175 241 . 348 258 150 374 18 189 Average Temperature 101 | 6 21 123 . 56 100 117 50 94 83 94 . 102 87 48 128 8 86 Received Heat Transfer 2582 | . . 39 . . 513 162 . 645 . . . 564 33 144 155 . 327 Effects 8 | . . . . . 7 1 . . . . . . . . . . . Energy Bleed 3 | . . . . . 2 1 . . . . . . . . . . . Interference 5 | . . . . . 5 . . . . . . . . . . . . Siege Activations . | . . . . . . . . . . . . . . . . . . Robots Corrupted 4 | . . . . . 3 . . . . . . . . . . . 1 Combat Hostiles 4 | . . . . . 3 . . . . . . . . . . . 1 Parts Fried 19 | . . . . . 15 . . . . . . . 3 . 1 . . Impact Corruptions . | . . . . . . . . . . . . . . . . . . Robots Melted 1 | . . . . . . 1 . . . . . . . . . . . Combat Hostiles 1 | . . . . . . 1 . . . . . . . . . . . Parts Melted 8 | . . 1 . 1 . 6 . . . . . . . . . . . Heat Transferred 2963 | . 62 522 . 370 200 1150 . 150 . . . . . . 259 . 250 Parts Sabotaged 2 | . . . . . . . . . . . . 2 . . . . . Parts Stolen . | . . . . . . . . . . . . . . . . . . Parts Stripped . | . . . . . . . . . . . . . . . . . . Power Chain Reactions 7 | . . . . . 6 . . 1 . . . . . . . . . Missiles Intercepted . | . . . . . . . . . . . . . . . . . . Alert | -11 -10 -10 -10 -9 -8 -7 -7 -7 -7 -7 -7 -6 -6 -6 -6 -6 -6 ------- Run | Scr Mat Min Exi Min Mat Fac Was Fac Low Low Dat Pro Fac Low Low Zio Dee Peak Influence 513 | 5 34 130 . 209 513 221 85 429 . . . . 190 . . . . Initial 132 | . 3 5 . . 4 84 70 59 . . . . 132 . . . . Average 152 | 1 5 57 . 135 288 107 78 189 . . . . 59 . . . . Maximum Alert Level 2 | . . . . 1 2 1 . 2 . . . . . . . . . Low Security (%) 71 | 100 100 100 . 53 31 91 100 60 . . . . 100 . . . . Level 1 21 | . . . . 46 41 8 . 37 . . . . . . . . . Level 2 6 | . . . . . 27 . . 1 . . . . . . . . . Level 3 . | . . . . . . . . . . . . . . . . . . Level 4 . | . . . . . . . . . . . . . . . . . . Level 5 . | . . . . . . . . . . . . . . . . . . High Security . | . . . . . . . . . . . . . . . . . . Max Security . | . . . . . . . . . . . . . . . . . . Squads Dispatched 37 | . 2 . . 1 4 10 . 12 . . . 1 6 . 1 . . Investigation 15 | . . . . 1 . 4 . 6 . . . . 4 . . . . Extermination 11 | . . . . . . 4 . 5 . . . . 2 . . . . Reinforcement 7 | . 2 . . . 3 1 . 1 . . . . . . . . . Assault 3 | . . . . . 1 . . . . . . 1 . . 1 . . Garrison 1 | . . . . . . 1 . . . . . . . . . . . Intercept . | . . . . . . . . . . . . . . . . . . Searches Triggered . | . . . . . . . . . . . . . . . . . . Data Miner Redirects 1 | . . . . . . . . . . . . . 1 . . . . Construction Impeded 1 | . . . . . 1 . . . . . . . . . . . . Haulers Reinforced . | . . . . . . . . . . . . . . . . . . Active Scanning Responses . | . . . . . . . . . . . . . . . . . . Cargo Convoy Interrupts 1 | . . . . . . 1 . . . . . . . . . . . Stealth | -11 -10 -10 -10 -9 -8 -7 -7 -7 -7 -7 -7 -6 -6 -6 -6 -6 -6 --------- Run | Scr Mat Min Exi Min Mat Fac Was Fac Low Low Dat Pro Fac Low Low Zio Dee Distress Signals 6 | . . . . . 3 . . 3 . . . . . . . . . Communications Jammed 6 | . . . . . . . . . . . . . 6 . . . . Distress Signals 6 | . . . . . . . . . . . . . 6 . . . . Times Spotted 250 | . 2 8 . 20 51 18 4 30 . 5 . 20 18 6 14 . 54 Peak Tracking Total 37 | . 2 3 . 9 10 3 4 4 . 2 . 5 3 5 8 . 37 Tactical Retreats 16 | . . 2 . . 5 . . . . 3 . 1 3 . 2 . . Traps | -11 -10 -10 -10 -9 -8 -7 -7 -7 -7 -7 -7 -6 -6 -6 -6 -6 -6 ------- Run | Scr Mat Min Exi Min Mat Fac Was Fac Low Low Dat Pro Fac Low Low Zio Dee Traps Triggered 7 | . . 3 . . . 2 . 1 . 1 . . . . . . . Indirectly . | . . . . . . . . . . . . . . . . . . Trap Hack Attempts 46 | . . . . . 46 . . . . . . . . . . . . Triggered . | . . . . . . . . . . . . . . . . . . Disarmed . | . . . . . . . . . . . . . . . . . . Reprogrammed 5 | . . . . . 5 . . . . . . . . . . . . Reused 3 | . . . . 1 . . . . . . . . . . 1 . 1 Traps Extracted 7 | . . . . . 7 . . . . . . . . . . . . Installed 7 | . . . . 2 2 . . . . . . . . . 1 . 2 Triggered 4 | . . . . 1 1 1 . . . . . . . . 1 . . Most Traps Carried 6 | . . . . . 5 5 . . . . . . . . 6 5 5 Exploded 1 | . . . 1 . . . . . . . . . . . . . . Machines | -11 -10 -10 -10 -9 -8 -7 -7 -7 -7 -7 -7 -6 -6 -6 -6 -6 -6 ---------- Run | Scr Mat Min Exi Min Mat Fac Was Fac Low Low Dat Pro Fac Low Low Zio Dee Machines Disabled 15 | . . . . 1 2 . . 5 . . . . . . . 3 4 Max in Single Turn 3 | . . . . 1 2 . . 3 . . . . . . . 1 2 Garrison Access 4 | . . . . . 1 2 . 1 . . . . . . . . . Machines Sabotaged . | . . . . . . . . . . . . . . . . . . Garrisons Compromised 1 | . . . . . . 1 . . . . . . . . . . . Overloaded Fab Kills . | . . . . . . . . . . . . . . . . . . Hacking | -11 -10 -10 -10 -9 -8 -7 -7 -7 -7 -7 -7 -6 -6 -6 -6 -6 -6 --------- Run | Scr Mat Min Exi Min Mat Fac Was Fac Low Low Dat Pro Fac Low Low Zio Dee Machines Accessed 62 | . 4 1 2 1 10 12 . 15 . . 4 . 11 2 . . . Terminals 30 | . 4 . . . 6 7 . 7 . . . . 6 . . . . Fabricators 7 | . . . . . . 1 . 2 . . . . 4 . . . . Repair Stations 5 | . . . . . 2 2 . 1 . . . . . . . . . Recycling Units 1 | . . . . . . . . 1 . . . . . . . . . Scanalyzers 6 | . . . . . 2 . . 3 . . . . 1 . . . . Garrison Access 3 | . . . . . . 2 . 1 . . . . . . . . . Total Hacks 209 | . 9 1 2 1 43 40 . 48 . . 30 . 30 5 . . . Successful 130 | . 3 1 2 1 25 15 . 32 . . 30 . 16 5 . . . Failed 78 | . 6 . . . 17 25 . 16 . . . . 14 . . . . Catastrophic 13 | . 2 . . . 4 4 . 3 . . . . . . . . . Database Lockouts 1 | . . . . . 1 . . . . . . . . . . . . Manual 61 | . 6 . 1 . 24 11 . 12 . . . . 7 . . . . Terminals 100 | . 9 . . . 28 27 . 19 . . . . 17 . . . . Fabricators 18 | . . . . . . 3 . 3 . . . . 12 . . . . Repair Stations 21 | . . . . . 8 5 . 8 . . . . . . . . . Recycling Units 2 | . . . . . . . . 2 . . . . . . . . . Scanalyzers 23 | . . . . . 7 . . 15 . . . . 1 . . . . Garrison Access 6 | . . . . . . 5 . 1 . . . . . . . . . Terminal Hacks 68 | . 2 1 2 1 9 5 . 7 . . 30 . 6 5 . . . Record 16 | . . . 1 . . . . . . . 11 . . 4 . . . Part Schematic 16 | . . . . . 2 . . 2 . . 11 . 1 . . . . Robot Schematic 6 | . . . . . . 1 . . . . 5 . . . . . . Prototype ID Bank 6 | . 1 . . . . 1 . 1 . . 3 . . . . . . Open Door 3 | . . 1 . 1 . . . . . . . . . 1 . . . Open DSF 1 | . . . . . . 1 . . . . . . . . . . . Branch Access Points 3 | . . . . . 1 . . 1 . . . . 1 . . . . Emergency Access Points 1 | . . . . . 1 . . . . . . . . . . . . Machine Index 1 | . . . . . . . . 1 . . . . . . . . . Terminal Index 1 | . . . . . . 1 . . . . . . . . . . . Scanalyzer Index 2 | . . . . . . . . 1 . . . . 1 . . . . Unreport Threat 7 | . 1 . . . 3 . . 1 . . . . 2 . . . . Maintenance Status 1 | . . . . . . . . . . . . . 1 . . . . Investigation Status 1 | . . . . . 1 . . . . . . . . . . . . Reinforcement Status 1 | . . . . . 1 . . . . . . . . . . . . Hauler Manifests 1 | . . . . . . 1 . . . . . . . . . . . EX-Prototype ID Bank 1 | . . . 1 . . . . . . . . . . . . . . Fabricator Hacks 10 | . . . . . . . . 3 . . . . 7 . . . . Network Status 2 | . . . . . . . . 1 . . . . 1 . . . . Load Schematic 3 | . . . . . . . . . . . . . 3 . . . . Build 5 | . . . . . . . . 2 . . . . 3 . . . . Repair Station Hacks 19 | . . . . . 8 4 . 7 . . . . . . . . . Scan Component 9 | . . . . . 4 2 . 3 . . . . . . . . . Repair 9 | . . . . . 4 2 . 3 . . . . . . . . . Refit 1 | . . . . . . . . 1 . . . . . . . . . Recycling Unit Hacks 1 | . . . . . . . . 1 . . . . . . . . . Report Inventory 1 | . . . . . . . . 1 . . . . . . . . . Scanalyzer 14 | . . . . . 6 . . 8 . . . . . . . . . Insert Component 8 | . . . . . 3 . . 5 . . . . . . . . . Analyze 6 | . . . . . 3 . . 3 . . . . . . . . . Garrison Access Hacks 3 | . . . . . . 2 . 1 . . . . . . . . . Seal Access 3 | . . . . . . 2 . 1 . . . . . . . . . Unauthorized Hacks 15 | . 1 . . . 2 4 . 5 . . . . 3 . . . . Terminals 14 | . 1 . . . 2 4 . 4 . . . . 3 . . . . Assimilate 2 | . . . . . 1 . . 1 . . . . . . . . . Botnet 9 | . . . . . 1 3 . 3 . . . . 2 . . . . Operators 3 | . 1 . . . . 1 . . . . . . 1 . . . . Fabricators . | . . . . . . . . . . . . . . . . . . Repair Stations . | . . . . . . . . . . . . . . . . . . Recycling Units 1 | . . . . . . . . 1 . . . . . . . . . Tunnel 1 | . . . . . . . . 1 . . . . . . . . . Scanalyzers . | . . . . . . . . . . . . . . . . . . Garrison Access . | . . . . . . . . . . . . . . . . . . Data Cores Recovered . | . . . . . . . . . . . . . . . . . . Used . | . . . . . . . . . . . . . . . . . . Hacking Detections 41 | . 4 . . . 5 10 . 11 . . . . 11 . . . . Full Trace Events 16 | . 2 . . . 1 4 . 5 . . . . 4 . . . . Feedback Events 2 | . . . . . . 1 . 1 . . . . . . . . . Corruption 1 | . . . . . . 1 . . . . . . . . . . . Hackware Fried 1 | . . . . . . . . 1 . . . . . . . . . Feedback Blocked . | . . . . . . . . . . . . . . . . . . Robot Schematics Acquired 9 | . . . . . . 1 . . . . 5 . . . . 3 . Robots Built . | . . . . . . . . . . . . . . . . . . Authchips . | . . . . . . . . . . . . . . . . . . Time . | . . . . . . . . . . . . . . . . . . Total Robot Build Rating . | . . . . . . . . . . . . . . . . . . Part Schematics Acquired 34 | . . . . . 5 . . 4 . . 11 . 1 . . 13 . Parts Built 7 | . . . . . . . . 4 . . . . 3 . . . . Authchips . | . . . . . . . . . . . . . . . . . . Time 550 | . . . . . . . . 92 . . . . 458 . . . . Total Part Build Rating 46 | . . . . . . . . 26 . . . . 20 . . . . Parts Repaired 9 | . . . . . 4 2 . 3 . . . . . . . . . Time 478 | . . . . . 180 31 . 267 . . . . . . . . . Parts Recycled . | . . . . . . . . . . . . . . . . . . Recycled Matter . | . . . . . . . . . . . . . . . . . . Retrieved Matter . | . . . . . . . . . . . . . . . . . . Retrieved Components . | . . . . . . . . . . . . . . . . . . Parts Scanalyzed 6 | . . . . . 3 . . 3 . . . . . . . . . Part Schematics Acquired 5 | . . . . . 3 . . 2 . . . . . . . . . Parts Damaged . | . . . . . . . . . . . . . . . . . . Bothacking | -11 -10 -10 -10 -9 -8 -7 -7 -7 -7 -7 -7 -6 -6 -6 -6 -6 -6 ------------ Run | Scr Mat Min Exi Min Mat Fac Was Fac Low Low Dat Pro Fac Low Low Zio Dee Used RIF Installer . | . . . . . . . . . . . . . . . . . . Robots Hacked 1 | . . . . . . . . 1 . . . . . . . . . Non-combat 1 | . . . . . . . . 1 . . . . . . . . . Combat . | . . . . . . . . . . . . . . . . . . Robot Hacks Applied 1 | . . . . . . . . 1 . . . . . . . . . parse_system 1 | . . . . . . . . 1 . . . . . . . . . Relay Couplers Released 3 | . . . . . 3 . . . . . . . . . . . . Machine Destruction 3 | . . . . . 3 . . . . . . . . . . . . Fabnet Peak Effective % . | . . . . . . . . . . . . . . . . . . Robots Rewired 4 | . . . . . . . . . . . . 2 . . 2 . . Allies Hacked . | . . . . . . . . . . . . . . . . . . Hacks Repelled . | . . . . . . . . . . . . . . . . . . Allies | -11 -10 -10 -10 -9 -8 -7 -7 -7 -7 -7 -7 -6 -6 -6 -6 -6 -6 -------- Run | Scr Mat Min Exi Min Mat Fac Was Fac Low Low Dat Pro Fac Low Low Zio Dee Total Allies 14 | . . 3 . . 1 . . 1 . . . 3 . . 2 4 . Largest Group 6 | . . 3 3 3 1 . . 1 . . . 3 . . 2 6 6 Highest-Rated Group 173 | . . 40 40 40 10 . . 26 . . . 136 . . 61 173 173 Highest-Rated Ally 96 | . . 16 16 16 10 . . 26 . . . 96 . . 32 32 32 Total Orders . | . . . . . . . . . . . . . . . . . . Ally Attacks 149 | . . . . 32 . . . . . . . 32 . . . . 85 Total Damage 2597 | . . . . 260 . . . . . . . 1187 . . . . 1150 Kills 27 | . . . . 6 . . . . . . . 7 . . . . 14 Allies Corrupted . | . . . . . . . . . . . . . . . . . . Allies Melted . | . . . . . . . . . . . . . . . . . . Intel | -11 -10 -10 -10 -9 -8 -7 -7 -7 -7 -7 -7 -6 -6 -6 -6 -6 -6 ------- Run | Scr Mat Min Exi Min Mat Fac Was Fac Low Low Dat Pro Fac Low Low Zio Dee Robot Analysis Total . | . . . . . . . . . . . . . . . . . . Derelict Logs Recovered 12 | . . 2 . 1 . . . . 2 1 . 2 . 1 2 1 . Drone Launches . | . . . . . . . . . . . . . . . . . . Drone Recoveries . | . . . . . . . . . . . . . . . . . . Exploration | -11 -10 -10 -10 -9 -8 -7 -7 -7 -7 -7 -7 -6 -6 -6 -6 -6 -6 ------------- Run | Scr Mat Min Exi Min Mat Fac Was Fac Low Low Dat Pro Fac Low Low Zio Dee Turns Passed 16970 | 53 260 780 279 431 2289 2225 104 2448 323 521 95 786 1792 1435 664 1483 1002 Spaces Moved 11056 | 45 222 681 288 325 1226 1087 92 1448 267 393 80 500 962 1143 409 1164 724 Core 4 | 4 . . . . . . . . . . . . . . . . . Treads 1451 | . . . . . 504 947 . . . . . . . . . . . Legs 7322 | . . . . . . 140 92 1448 267 393 80 500 962 1143 409 1164 724 Wheels 2279 | 41 222 681 288 325 722 . . . . . . . . . . . . Hover . | . . . . . . . . . . . . . . . . . . Flight . | . . . . . . . . . . . . . . . . . . Fastest Speed 50 | 50 80 80 90 90 100 112 112 112 120 120 120 120 120 120 120 120 120 Average Speed 120 | 77 80 92 90 99 126 162 112 114 120 120 120 120 127 120 120 120 120 Slowest Speed 250 | 80 80 105 90 115 250 170 112 120 120 120 120 190 190 120 120 120 190 Overloaded Moves . | . . . . . . . . . . . . . . . . . . Propulsion Burnouts . | . . . . . . . . . . . . . . . . . . Robots Hopped . | . . . . . . . . . . . . . . . . . . Cave-ins Triggered . | . . . . . . . . . . . . . . . . . . Exploration Rate (%) 62 | 4 49 98 62 91 65 29 79 43 62 65 69 70 22 97 61 82 82 Regions Visited 17 Branch Regions 11 Pre-discovered Areas 8 | . . 1 1 . . . . 1 . . 1 . . 1 . 3 . Known Exits Taken 4 | . . 1 . . 1 . . 1 . . . . 1 . . . . Unknown Exits Taken 11 | 1 1 . 1 1 . . . . 1 1 1 1 . 1 1 1 . Scrap Searched 16 | . . 1 . 1 . . . . 2 2 . 1 . 4 2 3 . Spaces Dug 78 | . . . . 1 39 8 . 24 . . . . 4 . 2 . . Terrain Destroyed 481 | . . . . 31 119 24 . 103 . . . 21 4 2 10 . 167 Melee 29 | . . . . 1 . 8 . 16 . . . . 4 . . . . Projectile 27 | . . . . . 11 . . . . . . . . 2 10 . 4 AOE 425 | . . . . 30 108 16 . 87 . . . 21 . . . . 163 Terrain Rammed . | . . . . . . . . . . . . . . . . . . Walls Destroyed . | . . . . . . . . . . . . . . . . . . Machines Disabled . | . . . . . . . . . . . . . . . . . . Actions | -11 -10 -10 -10 -9 -8 -7 -7 -7 -7 -7 -7 -6 -6 -6 -6 -6 -6 --------- Run | Scr Mat Min Exi Min Mat Fac Was Fac Low Low Dat Pro Fac Low Low Zio Dee Total 13886 | 56 297 801 308 398 1834 1455 92 2040 268 416 79 627 1476 1175 523 1237 804 Wait 1807 | 2 59 85 19 20 366 236 . 447 . . . 41 430 5 31 33 33 Move 11040 | 44 221 680 287 324 1225 1087 91 1447 266 392 79 499 961 1142 408 1163 724 Hop . | . . . . . . . . . . . . . . . . . . Pick Up 104 | 1 8 4 1 6 17 16 . 11 . 2 . 5 15 2 4 12 . Fast Attach 75 | 7 1 5 . 2 22 16 . 2 . 1 . 5 7 1 2 1 3 Attach 40 | . . . . . 7 1 . 6 . 2 . 5 4 3 4 4 4 Detach 12 | . . . . . . 1 . 2 . 1 . 3 2 1 1 1 . Swap 119 | 1 3 6 . 12 39 16 1 11 2 1 . 2 8 2 10 3 2 Drop 119 | . 2 7 1 9 26 30 . 6 . 3 . 2 18 1 1 11 2 Fire 280 | 1 3 14 . 21 83 19 . 23 . 1 . 38 13 5 24 1 34 Melee 175 | . . . . 2 1 33 . 85 . 13 . 2 18 13 . 8 . Ram . | . . . . . . . . . . . . . . . . . . Kick . | . . . . . . . . . . . . . . . . . . Crush . | . . . . . . . . . . . . . . . . . . Escape Stasis . | . . . . . . . . . . . . . . . . . . Rewire 62 | . . . . . . . . . . . . 25 . . 37 . . Trap 53 | . . . . 2 48 . . . . . . . . . 1 . 2 Miscellaneous . | . . . . . . . . . . . . . . . . . . Route ------- -11/Scrapyard -10/Materials -10/Mines (discovered 3 exits: [*Mat x2] / *Exi) -10/Exiles -9/Mines -8/Materials -7/Factory -7/Waste -7/Factory (discovered 4 exits: *Fac / *Sto / *Low x2) -7/Lower Caves -7/Lower Caves -7/Data Miner -6/Proximity Caves -6/Factory (discovered 4 exits: *Fac x2 / *Low x2) -6/Lower Caves -6/Lower Caves (discovered 2 exits: *Fac / [*Zio]) -6/Zion (discovered 2 exits: [*Dee] / [*Pro]) -6/Deep Caves (discovered 1 exit: [*Pro]) History --------- Turn | Location | Event 6 | -11/Scrapyard | Discovered new exit (range 16) 54 | -11/Scrapyard | Entered Materials 310 | -10/Materials | Discovered new exit (range 6) 314 | -10/Materials | Build established: Mutant 314 | -10/Materials | Entered Mines 317 | -10/Mines | Met a Derelict who couldn't figure out how to use a Trap Extractor 478 | -10/Mines | Identified exit to Exiles 708 | -10/Mines | Deemed a non-threat by the Exiles lab entrance 759 | -10/Mines | Joined a pair of Derelicts in attacking an 0b10 outpost 770 | -10/Mines | Learned location of 1 exit from Materials 782 | -10/Mines | Discovered new exit (range 12) 792 | -10/Mines | Received a Rocket Launcher from a helpful Derelict 924 | -10/Mines | Assisted by bots powering up and referring to "LRC-V3" 967 | -10/Mines | Learned location of Storage (-7) 1039 | -10/Mines | Discovered new exit (range 8) 1094 | -10/Mines | Entered Exiles 1094 | -10/Exiles | Accompanied by 3 allies 1116 | -10/Exiles | Met 8R-AWN 1131 | -10/Exiles | Met EX-HEX 1158 | -10/Exiles | Met EX-BIN 1169 | -10/Exiles | Aligned with FarCom system 1170 | -10/Exiles | Given EX-Vault access code 1191 | -10/Exiles | Opened EX-Vault 1197 | -10/Exiles | Found Field Lobotomy Kit 1216 | -10/Exiles | Warned to stay clear of 0b10 Research branches 1229 | -10/Exiles | Exiles lab attacked by MAIN.C 1247 | -10/Exiles | Learned location of Zion (-6) 1353 | -10/Exiles | Discovered new exit (range 14) 1373 | -10/Exiles | Left Exiles lab with Field Lobotomy Kit 1373 | -10/Exiles | Entered Mines 1373 | -9/Mines | Accompanied by 3 allies 1377 | -9/Mines | Learned Materials stockpile data 1398 | -9/Mines | Assembled infested the area 1403 | -9/Mines | Assisted by a Guerilla fighting off Assembled 1562 | -9/Mines | Found a hidden stash of uninstalled traps 1639 | -9/Mines | Discovered new exit (range 12) 1775 | -9/Mines | Met a Derelict shopkeep closing up shop 1804 | -9/Mines | Entered Materials 1804 | -8/Materials | Evolved 4 slots: Propulsion x1, Utility x2, Weapon x1 1805 | -8/Materials | Identified exit to Factory 1908 | -8/Materials | Build established: Scavenger-Mutant 2063 | -8/Materials | Repaired Hrd. Medium Armor Plating 3107 | -8/Materials | Repaired Hrd. Medium Armor Plating 3168 | -8/Materials | Repaired Hvy. EM Shotgun 3214 | -8/Materials | Repaired Great Axe 3284 | -8/Materials | Build established: Skirmisher 3399 | -8/Materials | Central database locked down 4074 | -8/Materials | System corruption reached 10% 4093 | -8/Materials | Entered Factory 4093 | -7/Factory | Evolved 2 slots: Propulsion x1, Utility x1 4200 | -7/Factory | Repaired Hrd. Medium Armor Plating 4354 | -7/Factory | Build established: Scavenger-Assassin 4393 | -7/Factory | Discovered new exit (range 5) 5032 | -7/Factory | Garrison activated, responded to threat 5061 | -7/Factory | Build established: Assassin 5328 | -7/Factory | Repaired Arm. Treads 5896 | -7/Factory | Cargo convoy interrupted 6015 | -7/Factory | Build established: Scavenger-Mutant 6119 | -7/Factory | Found Prototype Slashing Weapon 6119 | -7/Factory | Identified Centrium Greatsword 6166 | -7/Factory | Found Centrium Greatsword 6175 | -7/Factory | Found Centrium Greatsword 6200 | -7/Factory | Found Prototype Protection 6318 | -7/Factory | Sucked down chute 6318 | -7/Factory | Entered Waste 6333 | -7/Waste | EMP discharged 6333 | -7/Waste | System corruption reached 10% 6348 | -7/Waste | Spotted C-40 Crusher 6348 | -7/Waste | Spotted C-40 Crusher 6384 | -7/Waste | Spotted C-40 Crusher 6385 | -7/Waste | Spotted C-40 Crusher 6387 | -7/Waste | Spotted C-40 Crusher 6406 | -7/Waste | Spotted C-40 Crusher 6411 | -7/Waste | Discovered new exit (range 10) 6422 | -7/Waste | Entered Factory 6464 | -7/Factory | Build established: Hacker-Mutant 6467 | -7/Factory | Fabricated Myomer Leg? 6850 | -7/Factory | Identified exit to Storage 6850 | -7/Factory | Identified exit to Lower Caves 7084 | -7/Factory | Fabricated Hyp. Gauss Cannon (x2) 7180 | -7/Factory | Discovered new exit (range 11) 7244 | -7/Factory | System Shield fried by hacking feedback 8166 | -7/Factory | Repaired Broken Centrium Greatsword 8214 | -7/Factory | Repaired Imp. Medium Armor Plating 8315 | -7/Factory | Repaired Exp. Flexi-carbon Leg 8842 | -7/Factory | Build established: Mutant 8870 | -7/Factory | Entered Lower Caves 8893 | -7/Lower Caves | Learned 4 Factory zone layouts 8907 | -7/Lower Caves | Learned Factory non-interactive machine intel 9130 | -7/Lower Caves | Encountered a Warlord checkpoint 9178 | -7/Lower Caves | Build established: Gladiator 9179 | -7/Lower Caves | Discovered new exit (range 4) 9193 | -7/Lower Caves | Entered another Lower Caves area 9506 | -7/Lower Caves | Learned location of 1 exit from Factory 9613 | -7/Lower Caves | Encountered a Warlord checkpoint 9704 | -7/Lower Caves | Discovered new exit (range 6) 9714 | -7/Lower Caves | Entered Data Miner 9714 | -7/Data Miner | Discovered new exit (range 6) 9737 | -7/Data Miner | Met Data Miner 9760 | -7/Data Miner | Learned location of Section 7 (-2) 9760 | -7/Data Miner | Acquired the access code to Warlord's prototype stash 9780 | -7/Data Miner | Received God Mode back door access code from Data Miner 9809 | -7/Data Miner | Entered Proximity Caves 9811 | -6/Proximity Caves | Attracted the attention of an 0b10 checkpoint 9811 | -6/Proximity Caves | Core integrity fell below 50% 9857 | -6/Proximity Caves | Escorted by Enhanced Grunt 9862 | -6/Proximity Caves | Attracted the attention of an 0b10 outpost 10010 | -6/Proximity Caves | Identified Active Cooling Armor 10164 | -6/Proximity Caves | Build established: Mutant 10239 | -6/Proximity Caves | Learned Factory trap positions 10260 | -6/Proximity Caves | Learned Factory terminal intel 10383 | -6/Proximity Caves | Discovered new exit (range 10) 10482 | -6/Proximity Caves | Received a Behemoth hack from an annoying Tinkerer 10595 | -6/Proximity Caves | Entered Factory 10595 | -6/Factory | Evolved 2 slots: Utility x2 10596 | -6/Factory | Identified exit to Factory 10598 | -6/Factory | Loaded intel: 76 trap records 10599 | -6/Factory | Loaded intel: 211 non-interactive machine locations 10600 | -6/Factory | Loaded intel: 26 terminal locations 11197 | -6/Factory | Build established: Skirmisher 11317 | -6/Factory | Discovered exit to Factory (range 12) 11814 | -6/Factory | Fabricated Centrium Greatsword? 11885 | -6/Factory | Fabricated Combat Drone Bay? 12089 | -6/Factory | Incoming investigation squad redirected 12140 | -6/Factory | Build established: Hacker-Gladiator 12161 | -6/Factory | Discovered new exit (range 14) 12168 | -6/Factory | Identified exit to Lower Caves 12249 | -6/Factory | Fabricated Adv. Myomer Leg? 12387 | -6/Factory | Entered Lower Caves 12640 | -6/Lower Caves | Learned location of Extension (-5) 12777 | -6/Lower Caves | Build established: Gladiator 12812 | -6/Lower Caves | Discovered new exit (range 8) 13146 | -6/Lower Caves | Learned Factory garrison access intel 13146 | -6/Lower Caves | Learned Extension garrison access intel 13504 | -6/Lower Caves | Build established: Scavenger-Tank 13822 | -6/Lower Caves | Entered another Lower Caves area 13838 | -6/Lower Caves | Discovered exit to Factory (range 5) 13839 | -6/Lower Caves | Attracted the attention of an 0b10 checkpoint 13898 | -6/Lower Caves | Spotted B-75 Beast 13972 | -6/Lower Caves | Lost 3 parts (2u1w) 13988 | -6/Lower Caves | Destroyed B-75 Beast 14015 | -6/Lower Caves | Encountered a Warlord checkpoint 14097 | -6/Lower Caves | Learned Factory terminal intel 14160 | -6/Lower Caves | Attracted the attention of an 0b10 outpost 14306 | -6/Lower Caves | Learned 4 Factory zone layouts 14409 | -6/Lower Caves | Discovered new exit (range 12) 14486 | -6/Lower Caves | Entered Zion 14486 | -6/Zion | Accompanied by 2 allies 14526 | -6/Zion | System corruption cleaned by Quarantine Array 14570 | -6/Zion | Given the Hacking Drone Bay 14570 | -6/Zion | Found Prototype Device 14628 | -6/Zion | Found Prototype Special Weapon 14633 | -6/Zion | Found Prototype Special Weapon 14649 | -6/Zion | Discovered new exit (range 15) 14736 | -6/Zion | Learned location of Quarantine (-2) 14905 | -6/Zion | Learned Factory emergency access door positions 15082 | -6/Zion | Gained Derelict followers 15129 | -6/Zion | Learned Factory emergency access door positions 15222 | -6/Zion | Build established: Scavenger-Mutant 15374 | -6/Zion | Learned location of Warlord (-4) 15421 | -6/Zion | Identified Hacking Drone Bay 15467 | -6/Zion | Identified RU-N14's Throwing Claymores (x2) 15736 | -6/Zion | Found RU-N14's Throwing Claymores 15738 | -6/Zion | Found RU-N14's Throwing Claymores 15915 | -6/Zion | Discovered new exit (range 3) 15915 | -6/Zion | Saw the warning signs outside the Deep Caves entrance 15969 | -6/Zion | Entered Deep Caves 15969 | -6/Deep Caves | Accompanied by 6 allies 16260 | -6/Deep Caves | Attacked by Z-Imprinter 16268 | -6/Deep Caves | Destroyed Z-Imprinter 16324 | -6/Deep Caves | Z-Facility disabled 16342 | -6/Deep Caves | Build established: Mutant 16428 | -6/Deep Caves | Found Prototype Protection 16428 | -6/Deep Caves | Identified Zio. Weapon Casing 16549 | -6/Deep Caves | Discovered new exit (range 6) 16807 | -6/Deep Caves | Spotted as-96932 16873 | -6/Deep Caves | Core integrity fell below 50% 16879 | -6/Deep Caves | Destroyed as-96932 16897 | -6/Deep Caves | Lost 4 parts (2n2u) 16924 | -6/Deep Caves | Triggered Deep Caves wall 16927 | -6/Deep Caves | Exposed GOLEM chamber 16950 | -6/Deep Caves | Spotted AS-98194 16963 | -6/Deep Caves | Destroyed 41 combat bots 16964 | -6/Deep Caves | Destroyed AS-98194 16971 | -6/Deep Caves | Self-destructed Last Messages --------------- 16936_ as-06056 GOLEM Unit beginning Prototype Leg integration. 16936_ GOLEM Unit springs to life. 16936_ as-99388 destroyed. 16936_ as-28000 destroyed. 16937_ as-77754 GOLEM Unit beginning Prototype Leg integration. 16937_ as-24207 GOLEM Unit beginning Prototype Leg integration. 16939_ GOLEM Unit springs to life. 16939_ as-25421 destroyed. 16939_ as-24207 destroyed. 16939_ RU-N14's Throwing Claymores expended. 16939_ as-06056 destroyed. 16940_ as-66761 GOLEM Unit beginning Prototype Leg integration. 16940_ GOLEM Unit springs to life. 16941_ as-97678 GOLEM Unit beginning Prototype Leg integration. 16942_ as-26432 destroyed. 16946_ GOLEM Unit springs to life. 16947_ as-50996 GOLEM Unit beginning Prototype Leg integration. 16960_ GOLEM Unit springs to life. 16961_ as-86946 GOLEM Unit beginning Prototype Leg integration. 16964_ RU-N14's Throwing Claymores expended. Map ----- +----------------------------------------------------+ | ??????????????????????????????# ##### #?? | | ??????????????????????????????## #% ##? | | ???????????????????????????????# % ## | | ???????????????????????????????## | | ???????????? ???????????????### | | ?????????? = ???????????????## | | ??????? = ?????????????## ## | | ????? ????????????###### | | ??? ???????????????# | | ??? = = ! ?????????????## | | ???? #??????####### | | ????? M #????## | | ?????? ! #????# | | ??????? ! #????# | | ??????### ! #????## | | ??????# = #?????##### | | ??????# #?????????# | | ??????# ! #?????????# # | | ???????" * ##???????# ## | | ????????"" #???????##### ### | | ????????# = !!* #???????????####?# | | ????????" * ####?###########?# | | ????????" b s ##;###;;# # <#?# | | ????????" #?# | | ????????""" g a #??### | | ????????" a@ [ = ;##### | | ????????"" *%!%#######"" """# | | ????????" !*; #??###"" | | ????????"" ;###?## % | | ????????" # # ##??## | | ????????" #### ## ## ##???# | | ????????""" ###??# ## ####????###### ##### | | ?????????" ?????#### #????????????########???? | | ?????????#####?????????#????????????????????????? | | | | | | | | | | | | | | | | | | | | | | | | | | | | | | | | | +----------------------------------------------------+ Best States ------------- Heat Dissipation 94 Energy Generation 27 Energy Capacity 810 Matter Stores 300 Matter Capacity 300 Sight Range 16 Robot Scan Range 15 Terrain Scan Range 16 Terrain Scan Density 10 Jamming Range 12 Armor Coverage 900 Weapon Shielding 100 Evasion (%) 59 Targeting Accuracy 8 Melee Accuracy 14 Launcher Accuracy 20 Recoil Reduction 4 Particle Charging 15 Offensive Hacking 24 Defensive Hacking 12 Trap Extractor Capacity 6 Item Schematics ----------------- Bore Cannon | -8/Materials | Scanalyzed Hrd. Medium Armor Plating | -8/Materials | Scanalyzed ECM Suite | -8/Materials | Hacked Adv. Targeting Computer | -8/Materials | Hacked Hvy. EM Shotgun | -8/Materials | Scanalyzed Centrium Greatsword | -7/Factory | Scanalyzed Adv. Myomer Leg | -7/Factory | Scanalyzed Imp. Gravmag System | -7/Factory | Hacked System Restoration Module | -7/Factory | Hacked Combat Drone Bay | -7/Data Miner | Free Lgt. Regenerative Plating | -7/Data Miner | Free Cld. Aerolev Unit | -7/Data Miner | Free Exp. Targeting Computer | -7/Data Miner | Free Force Rifle | -7/Data Miner | Free Linear Gravjet | -7/Data Miner | Free Mni. Drone Bay | -7/Data Miner | Free Enh. Gauss Cannon | -7/Data Miner | Free Tesla Rifle | -7/Data Miner | Free Matter Neutralizer | -7/Data Miner | Free Imp. Antigrav System | -7/Data Miner | Free Enh. Optical Array | -6/Factory | Hacked Imp. Transmission Jammer | -6/Zion | Archive Imp. Medium Treads | -6/Zion | Archive Adv. Sensor Array | -6/Zion | Archive Adv. Shield Generator | -6/Zion | Archive Adv. Field Recycling Unit | -6/Zion | Archive Hvy. Flak Cannon | -6/Zion | Archive Myomer Leg | -6/Zion | Archive Cloaking Device | -6/Zion | Archive Imp. Thermal Shield | -6/Zion | Archive Imp. Reaction Control System | -6/Zion | Archive Variable Charge Gun | -6/Zion | Archive Mak. Transmission Jammer | -6/Zion | Archive Adv. Transmission Jammer | -6/Zion | Archive Robot Schematics ------------------ L-31 Rogue | -7/Factory | Hacked L-41 Fighter | -7/Data Miner | Free H-55 Commando | -7/Data Miner | Free S-27 Virus | -7/Data Miner | Free A-15 Conveyor | -7/Data Miner | Free X-62 Marksman | -7/Data Miner | Free K-01 Serf | -6/Zion | Archive M-22 Extractor | -6/Zion | Archive Y-72 Warden | -6/Zion | Archive Fabricated ------------ Myomer Leg | x2 | -7/Factory | Preloaded Hyp. Gauss Cannon | x2 | -7/Factory | Preloaded Centrium Greatsword | x1 | -6/Factory Combat Drone Bay | x1 | -6/Factory Adv. Myomer Leg | x1 | -6/Factory Alien Tech Used ----------------- None Achievements -------------- Boltbath Maybe Next Time I'll Detach My Launcher That's One Door That Should Stay Closed Challenges ------------ None Game ------ Seed TrackerTargetFemtoactuators Manual? 0 Play Time 04:00:56 Cumulative 48.4 hours Start 2022.06.05 @ 22:28:19 End 2022.06.09 @ 14:39:32 Sessions 21 Manual Loads 0 Difficulty Rogue Special Mode None Game No. 114 Rogue 114 Adventurer 0 Explorer 0 Win Type - Total 1 Types 0/0/0/1/0/0/0/0/0 Lore% 54 Gallery% 61 Achievement% 47 Wizard Run 0 Options --------- ASCII 0 Keyboard 0 Movement Numpad Keybinds 0 Fullscreen 1 Font 14/SmallcapsGlow Map View 84x54 Tactical HUD 1 Map Filters NONE Filters NONE Steam 1 RUN: 35f92d94-ad4b-4850-8f83-db238cfd5def